lending/lending_fUSD_20250429
["ID","MTS","AMOUNT","RATE_DAILY","PERIOD"]
[359341815,1745945454249,-511.46,0.00027671,2]
[359341816,1745945454259,-470.0,0.00027671,2]
[359341817,1745945454267,-530.0,0.00027671,2]
[359341818,1745945454277,-633.15,0.00027671,2]
[359341819,1745945454286,-470.0,0.00027671,2]
[359341820,1745945454295,-470.0,0.00027671,2]
[359341821,1745945454304,-470.0,0.00027671,2]
[359341822,1745945454313,-411.617601,0.00027671,7]
[359341823,1745945454323,-1736.61,0.00027671,2]
[359341824,1745945454332,-411.617601,0.00027671,7]
[359341825,1745945454341,-470.0,0.00027671,2]
[359341826,1745945454350,-470.0,0.00027671,2]
[359341827,1745945454359,-10352.79,0.00027671,2]
[359341828,1745945454369,-804.85,0.00027671,2]
[359341829,1745945454378,-470.0,0.00027671,2]
[359341830,1745945454387,-589.86,0.00027671,2]
[359341831,1745945454397,-988.61,0.00027671,2]
[359341832,1745945454406,-470.0,0.00027671,2]
[359341833,1745945454415,-470.0,0.00027671,2]
[359341834,1745945454425,-403.00635843,0.00027671,2]
[359341835,1745945454435,-470.0,0.00027671,2]
[359341836,1745945454445,-246.114952,0.00027671,7]
[359341837,1745945454454,-48851.25,0.00027671,2]
[359341838,1745945454463,-250.0,0.00027671,2]
[359341839,1745945454472,-470.0,0.00027671,2]
[359341840,1745945454482,-470.0,0.00027671,2]
[359341841,1745945454658,-176.14383197,0.00027671,2]
[359341842,1745945454668,-470.0,0.00027671,2]
[359341843,1745945454678,-489.39,0.00027671,2]
[359341844,1745945454688,-246.114952,0.00027671,7]
[359341845,1745945454698,-569.56964188,0.00027671,2]
[359341846,1745945454707,-174.005283,0.00027671,7]
[359341847,1745945454716,-1798.16,0.00027671,2]
[359341848,1745945454726,-470.0,0.00027671,2]
[359341849,1745945454736,-174.005283,0.00027671,7]
[359341850,1745945454745,-530.0,0.00027671,2]
[359341851,1745945454755,-724.89,0.00027671,2]
[359341852,1745945454769,-470.0,0.00027671,2]
[359341853,1745945454778,-470.0,0.00027671,2]
[359341854,1745945454787,-1529.48,0.00027671,2]
[359341855,1745945454797,-533.56,0.00027671,2]
[359341856,1745945454807,-470.0,0.00027671,2]
[359341857,1745945454816,-470.0,0.00027671,2]
[359341858,1745945454826,-391.92779095,0.00027671,2]
[359341859,1745945454835,-5377.33,0.00027671,2]
[359341860,1745945454845,-572.03,0.00027671,2]
[359341861,1745945454854,-503.35,0.00027671,2]
[359341862,1745945454863,-173.9428522,0.00027671,2]
[359341863,1745945454873,-470.0,0.00027671,2]
[359341864,1745945454882,-470.0,0.00027671,2]
[359341865,1745945454893,-530.0,0.00027671,2]
[359341866,1745945454904,-470.0,0.00027671,2]
[359341867,1745945454914,-470.0,0.00027671,2]
[359341868,1745945454923,-659.73,0.00027671,2]
[359341869,1745945454934,-470.0,0.00027671,2]
[359341870,1745945454943,-714.27,0.00027671,2]
[359341871,1745945454952,-470.0,0.00027671,2]
[359341872,1745945454963,-545.62084694,0.00027671,2]
[359341873,1745945454973,-470.0,0.00027671,2]
[359341874,1745945454982,-590.0,0.00027671,2]
[359341875,1745945454992,-530.0,0.00027671,2]
[359341876,1745945455003,-2921.88,0.00027671,2]
[359341877,1745945455014,-470.0,0.00027671,2]
[359341878,1745945455023,-470.0,0.00027671,2]
[359341879,1745945455035,-470.0,0.00027671,2]
[359341880,1745945455046,-470.0,0.00027671,2]
[359341881,1745945455056,-234.408946,0.00027671,7]
[359341882,1745945455065,-470.0,0.00027671,2]
[359341883,1745945455075,-504.33,0.00027671,2]
[359341884,1745945455084,-433.97954774,0.00027671,2]
[359341885,1745945455094,-547.07869505,0.00027671,2]
[359341886,1745945455104,-234.408946,0.00027671,7]
[359341887,1745945455114,-1502.17,0.00027671,2]
[359341888,1745945455124,-470.0,0.00027671,2]
[359341889,1745945455134,-664.45,0.00027671,2]
[359341890,1745945455146,-470.0,0.00027671,2]
[359341891,1745945455157,-521.3,0.00027671,2]
[359341892,1745945455167,-507.36,0.00027671,2]
[359341893,1745945455177,-470.0,0.00027671,2]
[359341894,1745945455189,-470.0,0.00027671,2]
[359341895,1745945455198,-191.433405,0.00027671,7]
[359341896,1745945455208,-621.83,0.00027671,2]
[359341897,1745945455218,-470.0,0.00027671,2]
[359341898,1745945455228,-3231.93,0.00027671,2]
[359341899,1745945455237,-1530.33,0.00027671,2]
[359341900,1745945455248,-522.58,0.00027671,2]
[359341901,1745945455258,-844.92,0.00027671,2]
[359341902,1745945455267,-191.433405,0.00027671,7]
[359341903,1745945455278,-470.0,0.00027671,2]
[359341904,1745945455288,-2447.99,0.00027671,2]
[359341905,1745945455300,-835.11,0.00027671,2]
[359341906,1745945455311,-4829.31,0.00027671,2]
[359341907,1745945455321,-470.0,0.00027671,2]
[359341908,1745945455331,-1389.93,0.00027671,2]
[359341909,1745945455343,-612.12,0.00027671,2]
[359341910,1745945455353,-678.78,0.00027671,2]
[359341911,1745945455362,-470.0,0.00027671,2]
[359341912,1745945455373,-553.20939783,0.00027671,2]
[359341913,1745945455382,-470.0,0.00027671,2]
[359341914,1745945455393,-502.17,0.00027671,2]
[359341915,1745945455403,-470.0,0.00027671,2]
[359341916,1745945455413,-649.14,0.00027671,2]
[359341917,1745945455423,-470.0,0.00027671,2]
[359341918,1745945455434,-470.0,0.00027671,2]
[359341919,1745945455444,-470.0,0.00027671,2]
[359341920,1745945455455,-623.29,0.00027671,2]
[359341921,1745945455465,-470.0,0.00027671,2]
[359341922,1745945455474,-470.0,0.00027671,2]
[359341923,1745945455484,-151.0,0.00027671,7]
[359341924,1745945455493,-564.03,0.00027671,2]
[359341925,1745945455503,-470.0,0.00027671,2]
[359341926,1745945455513,-470.0,0.00027671,2]
[359341927,1745945455524,-489.70721051,0.00027671,2]
[359341928,1745945455534,-470.0,0.00027671,2]
[359341929,1745945455545,-863.8,0.00027671,2]
[359341930,1745945455555,-470.0,0.00027671,2]
[359341931,1745945455565,-151.0,0.00027671,7]
[359341932,1745945455575,-470.0,0.00027671,2]
[359341933,1745945455585,-470.0,0.00027671,2]
[359341934,1745945455595,-802.91,0.00027671,2]
[359341935,1745945455605,-470.0,0.00027671,2]
[359341936,1745945455615,-470.0,0.00027671,2]
[359341937,1745945455625,-1215.91,0.00027671,2]
[359341938,1745945455635,-470.0,0.00027671,2]
[359341939,1745945455644,-735.02,0.00027671,2]
[359341940,1745945455654,-470.0,0.00027671,2]
[359341941,1745945455664,-613.23,0.00027671,2]
[359341942,1745945455673,-470.0,0.00027671,2]
[359341943,1745945455683,-470.0,0.00027671,2]
[359341944,1745945455692,-469.12101967,0.00027671,2]
[359341945,1745945456219,-60.87898033,0.00027671,2]
[359341946,1745945456229,-470.0,0.00027671,2]
[359341947,1745945456239,-470.0,0.00027671,2]
[359341948,1745945456248,-470.0,0.00027671,2]
[359341949,1745945456258,-470.0,0.00027671,2]
[359341950,1745945456267,-470.0,0.00027671,2]
[359341951,1745945456278,-470.0,0.00027671,2]
[359341952,1745945456289,-470.0,0.00027671,2]
[359341953,1745945456299,-470.0,0.00027671,2]
[359341954,1745945456309,-470.0,0.00027671,2]
[359341955,1745945456319,-470.0,0.00027671,2]
[359341956,1745945456329,-1963.38,0.00027671,2]
[359341957,1745945456339,-530.0,0.00027671,2]
[359341958,1745945456348,-470.0,0.00027671,2]
[359341959,1745945456357,-582.31,0.00027671,2]
[359341960,1745945456366,-620.23,0.00027671,2]
[359341961,1745945456375,-614.97,0.00027671,2]
[359341962,1745945456387,-470.0,0.00027671,2]
[359341963,1745945456396,-470.0,0.00027671,2]
[359341964,1745945456406,-521.63,0.00027671,2]
[359341965,1745945456415,-470.0,0.00027671,2]
[359341966,1745945456427,-470.0,0.00027671,2]
[359341967,1745945456438,-1069.77040185,0.00027671,2]
[359341968,1745945456448,-254.17285812,0.00027671,2]
[359341969,1745945456459,-470.0,0.00027671,2]
[359341970,1745945456467,-1174.37,0.00027671,2]
[359341971,1745945456477,-685.18,0.00027671,2]
[359341972,1745945456488,-706.55,0.00027671,2]
[359341973,1745945456498,-781.01,0.00027671,2]
[359341974,1745945456508,-737.48,0.00027671,2]
[359341975,1745945456518,-999.7,0.00027671,2]
[359341976,1745945456528,-470.0,0.00027671,2]
[359341977,1745945456538,-470.0,0.00027671,2]
[359341978,1745945456548,-470.0,0.00027671,2]
[359341979,1745945456559,-470.0,0.00027671,2]
[359341980,1745945456569,-470.0,0.00027671,2]
[359341981,1745945456578,-901.82,0.00027671,2]
[359341982,1745945456588,-1750.24,0.00027671,2]
[359341983,1745945456598,-1742.87,0.00027671,2]
[359341984,1745945456609,-1401.96,0.00027671,2]
[359341985,1745945456619,-590.0,0.00027671,2]
[359341986,1745945456629,-470.0,0.00027671,2]
[359341987,1745945456639,-1447.38,0.00027671,2]
[359341988,1745945456649,-470.0,0.00027671,2]
[359341989,1745945456659,-319.29935711,0.00027671,2]
[359341990,1745945456669,-701.96,0.00027671,2]
[359341991,1745945456679,-470.0,0.00027671,2]
[359341992,1745945456690,-613.65,0.00027671,2]
[359341993,1745945456700,-470.0,0.00027671,2]
[359341994,1745945456710,-679.96,0.00027671,2]
[359341995,1745945456719,-470.0,0.00027671,2]
[359341996,1745945456729,-471.82,0.00027671,2]
[359341997,1745945456738,-784.15,0.00027671,2]
[359341998,1745945456747,-470.0,0.00027671,2]
[359341999,1745945456757,-470.0,0.00027671,2]
[359342000,1745945456771,-470.0,0.00027671,2]
[359342001,1745945456780,-470.0,0.00027671,2]
[359342002,1745945456790,-470.0,0.00027671,2]
[359342003,1745945456800,-781.13,0.00027671,2]
[359342004,1745945456809,-528.79,0.00027671,2]
[359342005,1745945456819,-2008.03,0.00027671,2]
[359342006,1745945456828,-721.41,0.00027671,2]
[359342007,1745945456838,-509.86,0.00027671,2]
[359342008,1745945456847,-1233.44,0.00027671,2]
[359342009,1745945456856,-470.0,0.00027671,2]
[359342010,1745945456866,-470.0,0.00027671,2]
[359342011,1745945456875,-470.0,0.00027671,2]
[359342012,1745945456884,-470.0,0.00027671,2]
[359342013,1745945456894,-470.0,0.00027671,2]
[359342014,1745945456903,-470.0,0.00027671,2]
[359342015,1745945456912,-470.0,0.00027671,2]
[359342016,1745945456922,-470.0,0.00027671,2]
[359342017,1745945456931,-15.77206298,0.00027671,2]
[359342018,1745945457449,-566.78,0.00027397,2]
[359342019,1745945457459,-883.17793702,0.00027671,2]
[359342020,1745945457468,-470.0,0.00027671,2]
[359342021,1745945457663,-911.77,0.00027671,2]
[359342022,1745945457673,-593.26,0.00027671,2]
[359342023,1745945457683,-1956.73,0.00027671,2]
[359342024,1745945457693,-657.36,0.00027671,2]
[359342025,1745945457703,-102.4594699,0.00027671,2]
[359342026,1745945457770,-308.15599445,0.00027671,2]
[359342027,1745945457782,-702.43453565,0.00027671,2]
[359342028,1745945457791,-470.0,0.00027671,2]
[359342029,1745945457803,-558.07,0.00027671,2]
[359342030,1745945457813,-1421.4,0.00027671,2]
[359342031,1745945457822,-639.91,0.00027671,2]
[359342032,1745945457832,-470.0,0.00027671,2]
[359342033,1745945457843,-549.39,0.00027671,2]
[359342034,1745945457853,-479.55,0.00027671,2]
[359342035,1745945457862,-470.0,0.00027671,2]
[359342036,1745945457872,-470.0,0.00027671,2]
[359342037,1745945457882,-470.0,0.00027671,2]
[359342038,1745945457891,-560.0,0.00027671,2]
[359342039,1745945457901,-511.46,0.00027671,2]
[359342040,1745945457911,-1082.12,0.00027671,2]
[359342041,1745945457921,-470.0,0.00027671,2]
[359342042,1745945457931,-470.0,0.00027671,2]
[359342043,1745945457944,-470.0,0.00027671,2]
[359342044,1745945457954,-824.13,0.00027671,2]
[359342045,1745945457964,-151.0,0.00027671,7]
[359342046,1745945457973,-470.0,0.00027671,2]
[359342047,1745945457982,-521.94,0.00027671,2]
[359342048,1745945457991,-787.98,0.00027671,2]
[359342049,1745945458001,-470.0,0.00027671,2]
[359342050,1745945458010,-470.0,0.00027671,2]
[359342051,1745945458019,-936.89,0.00027671,2]
[359342052,1745945458028,-499.08,0.00027671,2]
[359342053,1745945458037,-650.79,0.00027671,2]
[359342054,1745945458047,-1009.21,0.00027671,2]
[359342055,1745945458056,-614.05,0.00027671,2]
[359342056,1745945458066,-470.0,0.00027671,2]
[359342057,1745945458075,-761.95,0.00027671,2]
[359342058,1745945458084,-470.0,0.00027671,2]
[359342059,1745945458094,-470.0,0.00027671,2]
[359342060,1745945458103,-470.0,0.00027671,2]
[359342061,1745945458112,-156.243069,0.00027671,7]
[359342062,1745945458122,-471.04,0.00027671,2]
[359342063,1745945458131,-470.0,0.00027671,2]
[359342064,1745945458141,-470.0,0.00027671,2]
[359342065,1745945458150,-470.0,0.00027671,2]
[359342066,1745945458160,-470.0,0.00027671,2]
[359342067,1745945458169,-156.243069,0.00027671,7]
[359342068,1745945458179,-785.68,0.00027671,2]
[359342069,1745945458188,-945.37,0.00027671,2]
[359342070,1745945458197,-727.67,0.00027671,2]
[359342071,1745945458208,-803.06,0.00027671,2]
[359342072,1745945458218,-798.91,0.00027671,2]
[359342073,1745945458228,-167.170418,0.00027671,7]
[359342074,1745945458238,-392.401767,0.00027671,7]
[359342075,1745945458249,-470.0,0.00027671,2]
[359342076,1745945458259,-852.14,0.00027671,2]
[359342077,1745945458268,-167.170418,0.00027671,7]
[359342078,1745945458278,-392.401767,0.00027671,7]
[359342079,1745945458287,-1963.07,0.00027671,2]
[359342080,1745945458296,-610.074749,0.00027671,7]
[359342081,1745945458306,-470.0,0.00027671,2]
[359342082,1745945458315,-497.18,0.00027671,2]
[359342083,1745945458324,-896.46,0.00027671,2]
[359342084,1745945458334,-530.0,0.00027671,2]
[359342085,1745945458343,-610.074749,0.00027671,7]
[359342086,1745945458352,-470.0,0.00027671,2]
[359342087,1745945458362,-715.72,0.00027671,2]
[359342088,1745945458372,-470.0,0.00027671,2]
[359342089,1745945458382,-470.0,0.00027671,2]
[359342090,1745945458392,-470.0,0.00027671,2]
[359342091,1745945458404,-530.0,0.00027671,2]
[359342092,1745945458415,-610.65,0.00027671,2]
[359342093,1745945458425,-470.0,0.00027671,2]
[359342094,1745945458435,-470.0,0.00027671,2]
[359342095,1745945458444,-1875.65,0.00027671,2]
[359342096,1745945458454,-831.13,0.00027671,2]
[359342097,1745945458464,-716.85,0.00027671,2]
[359342098,1745945458475,-591.0257311,0.00027671,2]
[359342099,1745945458487,-470.0,0.00027671,2]
[359342100,1745945458495,-496.45,0.00027671,2]
[359342101,1745945458506,-727.53,0.00027671,2]
[359342102,1745945458515,-5993.55,0.00027671,2]
[359342103,1745945458526,-470.0,0.00027671,2]
[359342104,1745945458536,-470.0,0.00027671,2]
[359342105,1745945458545,-498.83,0.00027671,2]
[359342106,1745945458556,-151.0,0.00027671,7]
[359342107,1745945458565,-470.0,0.00027671,2]
[359342108,1745945458576,-470.0,0.00027671,2]
[359342109,1745945458585,-6940.54,0.00027671,2]
[359342110,1745945458595,-567.82276471,0.00027671,2]
[359342111,1745945458605,-656.76,0.00027671,2]
[359342112,1745945458615,-470.0,0.00027671,2]
[359342113,1745945458626,-470.0,0.00027671,2]
[359342114,1745945458635,-977.91,0.00027671,2]
[359342115,1745945458646,-871.32,0.00027671,2]
[359342116,1745945458655,-151.0,0.00027671,7]
[359342117,1745945458664,-549.95,0.00027671,2]
[359342118,1745945458673,-470.0,0.00027671,2]
[359342119,1745945458683,-470.0,0.00027671,2]
[359342120,1745945458693,-813.76,0.00027671,2]
[359342121,1745945458703,-470.0,0.00027671,2]
[359342122,1745945458712,-470.0,0.00027671,2]
[359342123,1745945458722,-723.42,0.00027671,2]
[359342124,1745945458731,-470.0,0.00027671,2]
[359342125,1745945458741,-470.0,0.00027671,2]
[359342126,1745945458750,-637.4,0.00027671,2]
[359342127,1745945458760,-689.14,0.00027671,2]
[359342128,1745945458770,-724.85,0.00027671,2]
[359342129,1745945458779,-549.05,0.00027671,2]
[359342130,1745945458789,-151.0,0.00027671,7]
[359342131,1745945458799,-233.671507,0.00027671,7]
[359342132,1745945458809,-1187.69,0.00027671,2]
[359342133,1745945458819,-470.0,0.00027671,2]
[359342134,1745945458828,-612.79196455,0.00027671,2]
[359342135,1745945458840,-721.53,0.00027671,2]
[359342136,1745945458850,-566.01074092,0.00027671,2]
[359342137,1745945458860,-151.0,0.00027671,7]
[359342138,1745945458869,-151.0,0.00027671,7]
[359342139,1745945458879,-303.32884518,0.00027673,5]
[359342140,1745945458889,-500.0,0.00027673,5]
[359342141,1745945458900,-500.0,0.00027673,5]
[359342142,1745945458910,-500.0,0.00027673,5]
[359342143,1745945458919,-556.47788212,0.00027673,5]
[359342144,1745945458931,-500.0,0.00027673,5]
[359342145,1745945458941,-320.0114459,0.00027673,5]
[359342146,1745945458953,-256.75326994,0.00027673,5]
[359342147,1745945458963,-500.0,0.00027673,5]
[359342148,1745945458972,-500.0,0.00027673,5]
[359342149,1745945458981,-500.0,0.00027673,5]
[359342150,1745945458991,-500.87603298,0.00027673,5]
[359342151,1745945459001,-500.0,0.00027673,5]
[359342152,1745945459010,-606.55783917,0.00027673,5]
[359342153,1745945459020,-222.34650816,0.00027673,5]
[359342154,1745945459030,-500.0,0.00027673,5]
[359342155,1745945459041,-500.0,0.00027673,5]
[359342156,1745945459052,-501.37137215,0.00027673,5]
[359342157,1745945459061,-500.86321128,0.00027673,5]
[359342158,1745945459070,-347.40802103,0.00027673,5]
[359342159,1745945459080,-500.0,0.00027673,5]
[359342160,1745945459089,-500.0,0.00027673,5]
[359342161,1745945459099,-500.0,0.00027673,5]
[359342162,1745945459109,-223.54304339,0.00027673,5]
[359342163,1745945459119,-500.0,0.00027673,5]
[359342164,1745945459131,-150.1175616,0.00027673,5]
[359342165,1745945459142,-559.16463604,0.00027673,5]
[359342166,1745945459153,-500.0,0.00027673,5]
[359342167,1745945459163,-151.0,0.00027673,7]
[359342168,1745945459173,-156.243069,0.00027673,7]
[359342169,1745945459183,-156.243069,0.00027673,7]
[359342170,1745945459194,-610.074749,0.00027673,7]
[359342171,1745945459204,-610.074749,0.00027673,7]
[359342172,1745945459214,-150.0,0.00027687,2]
[359342173,1745945459223,-151.0,0.0002772,7]
[359342174,1745945459232,-298.90417607,0.0002772,7]
[359342175,1745945459241,-167.170418,0.0002772,7]
[359342176,1745945459251,-392.401767,0.0002772,7]
[359342177,1745945459261,-167.170418,0.0002772,7]
[359342178,1745945459270,-392.401767,0.0002772,7]
[359342179,1745945459279,-151.0,0.0002772,7]
[359342180,1745945459289,-151.0,0.0002772,7]
[359342181,1745945459298,-151.0,0.0002772,7]
[359342182,1745945459308,-150.0,0.00027745,2]
[359342183,1745945459317,-150.0,0.00027745,2]
[359342184,1745945459327,-150.0,0.00027745,2]
[359342185,1745945459336,-150.0,0.00027745,2]
[359342186,1745945459346,-541.87148585,0.00027745,2]
[359342187,1745945459357,-569.81795047,0.00027745,2]
[359342188,1745945459368,-578.10178697,0.00027745,2]
[359342189,1745945459379,-503.44874101,0.00027745,2]
[359342190,1745945459389,-150.0,0.00027745,2]
[359342191,1745945459399,-2684.12592658,0.00027745,2]
[359342192,1745945459411,-151.0,0.00027772,7]
[359342193,1745945459422,-411.617601,0.00027772,7]
[359342194,1745945459431,-411.617601,0.00027772,7]
[359342195,1745945459441,-246.114952,0.00027772,7]
[359342196,1745945459450,-246.114952,0.00027772,7]
[359342197,1745945459459,-174.005283,0.00027772,7]
[359342198,1745945459469,-174.005283,0.00027772,7]
[359342199,1745945459478,-234.408946,0.00027772,7]
[359342200,1745945459487,-234.408946,0.00027772,7]
[359342201,1745945459497,-191.433405,0.00027772,7]
[359342202,1745945459506,-191.433405,0.00027772,7]
[359342203,1745945459516,-470.0,0.00027782,2]
[359342204,1745945459526,-470.0,0.00027782,2]
[359342205,1745945459535,-470.0,0.00027782,2]
[359342206,1745945459544,-470.0,0.00027782,2]
[359342207,1745945459554,-571.64,0.00027782,2]
[359342208,1745945459563,-470.0,0.00027782,2]
[359342209,1745945459572,-185.51027741,0.00027782,2]
[359342210,1745945459582,-470.0,0.00027782,2]
[359342211,1745945459591,-574.12397132,0.00027782,2]
[359342212,1745945459601,-5871.77081818,0.00027784,2]
[359342213,1745945459610,-470.0,0.00027785,2]
[359342214,1745945459620,-500.0,0.00027791,2]
[359342215,1745945459630,-3094.17209153,0.0002783,2]
[359342216,1745945459639,-350.73128,0.000279,7]
[359342217,1745945459649,-350.73128,0.000279,7]
[359342218,1745945459658,-2298.28728175,0.000279,7]
[359342219,1745945459668,-500.0,0.00027935,7]
[359342220,1745945459678,-494.0,0.00027935,7]
[359342221,1745945459689,-500.0,0.00027935,7]
[359342222,1745945459698,-291.36451384,0.00027935,7]
[359342223,1745945459708,-500.0,0.00027935,7]
[359342224,1745945459717,-207.59451203,0.00027935,7]
[359342225,1745945459727,-150.0,0.00027935,7]
[359342226,1745945459737,-262.81591171,0.00027935,7]
[359342227,1745945459747,-500.0,0.00027935,7]
[359342228,1745945459756,-500.0,0.00027935,7]
[359342229,1745945459768,-500.0,0.00027935,7]
[359342230,1745945459778,-500.0,0.00027935,7]
[359342231,1745945459787,-349.54451,0.00027935,7]
[359342232,1745945459797,-349.54451,0.00027935,7]
[359342233,1745945459807,-500.0,0.00027944,2]
[359342234,1745945459817,-263.09905844,0.00027944,2]
[359342235,1745945459826,-500.0,0.00027944,2]
[359342236,1745945459835,-500.0,0.00027944,2]
[359342237,1745945459846,-500.0,0.00027944,2]
[359342238,1745945459855,-500.0,0.00027944,2]
[359342239,1745945459865,-500.0,0.00027944,2]
[359342240,1745945459875,-500.0,0.00027944,2]
[359342241,1745945459884,-300.0,0.00027944,10]
[359342242,1745945459893,-300.0,0.00027944,10]
[359342243,1745945459903,-300.0,0.00027944,10]
[359342244,1745945459912,-151.0,0.00027944,7]
[359342245,1745945459921,-321.352363,0.00027944,7]
[359342246,1745945459930,-321.352363,0.00027944,7]
[359342247,1745945459941,-500.0,0.00027944,2]
[359342248,1745945459950,-470.0,0.00027945,2]
[359342249,1745945459959,-492.9294,0.00027945,2]
[359342250,1745945459968,-838.601084,0.00027945,2]
[359342251,1745945459977,-435.305035,0.00027945,2]
[359342252,1745945459987,-470.0,0.00027945,2]
[359342253,1745945459996,-470.0,0.00027945,2]
[359342254,1745945460006,-470.0,0.00027945,2]
[359342255,1745945460015,-470.0,0.00027945,2]
[359342256,1745945460025,-470.0,0.00027945,2]
[359342257,1745945460034,-470.0,0.00027945,2]
[359342258,1745945460044,-470.0,0.00027945,2]
[359342259,1745945460055,-764.44,0.00027945,2]
[359342260,1745945460064,-470.0,0.00027945,2]
[359342261,1745945460074,-470.0,0.00027945,2]
[359342262,1745945460083,-721.04,0.00027945,2]
[359342263,1745945460092,-470.0,0.00027945,2]
[359342264,1745945460102,-470.0,0.00027945,2]
[359342265,1745945460111,-717.09,0.00027945,2]
[359342266,1745945460120,-470.0,0.00027945,2]
[359342267,1745945460129,-470.0,0.00027945,2]
[359342268,1745945460138,-470.0,0.00027945,2]
[359342269,1745945460147,-470.0,0.00027945,2]
[359342270,1745945460156,-751.9,0.00027945,2]
[359342271,1745945460165,-470.0,0.00027945,2]
[359342272,1745945460174,-470.0,0.00027945,2]
[359342273,1745945460184,-470.0,0.00027945,2]
[359342274,1745945460194,-470.0,0.00027945,2]
[359342275,1745945460204,-151.0,0.00027945,7]
[359342276,1745945460214,-533.29,0.00027945,2]
[359342277,1745945460224,-312.8146849,0.00027945,2]
[359342278,1745945460572,-151.0,0.00027514,7]
[359342279,1745945460582,-151.0,0.00027602,7]
[359342280,1745945460592,-151.0,0.00027612,7]
[359342281,1745945460601,-123.12000908,0.00027661,7]
[359342282,1745945460612,-27.87999092,0.00027661,7]
[359342283,1745945460622,-151.0,0.0002767,7]
[359342284,1745945460631,-566.78,0.00027671,2]
[359342285,1745945460641,-151.0,0.00027671,7]
[359342286,1745945460650,-157.1853151,0.00027945,2]
[359342287,1745945460660,-617.11,0.00027945,2]
[359342288,1745945460670,-470.0,0.00027945,2]
[359342289,1745945460679,-470.0,0.00027945,2]
[359342290,1745945460689,-470.0,0.00027945,2]
[359342291,1745945460698,-470.0,0.00027945,2]
[359342292,1745945460707,-470.0,0.00027945,2]
[359342293,1745945460883,-485.42,0.00027945,2]
[359342294,1745945460894,-470.0,0.00027945,2]
[359342295,1745945460904,-515.3645845,0.00027945,2]
[359342296,1745945460913,-470.0,0.00027945,2]
[359342297,1745945460923,-470.0,0.00027945,2]
[359342298,1745945460932,-470.0,0.00027945,2]
[359342299,1745945460942,-470.0,0.00027945,2]
[359342300,1745945460951,-470.0,0.00027945,2]
[359342301,1745945460960,-776.56,0.00027945,2]
[359342302,1745945460970,-470.0,0.00027945,2]
[359342303,1745945460982,-470.0,0.00027945,2]
[359342304,1745945460992,-470.0,0.00027945,2]
[359342305,1745945461002,-470.0,0.00027945,2]
[359342306,1745945461012,-470.0,0.00027945,2]
[359342307,1745945461022,-470.0,0.00027945,2]
[359342308,1745945461032,-470.0,0.00027945,2]
[359342309,1745945461041,-470.0,0.00027945,2]
[359342310,1745945461050,-470.0,0.00027945,2]
[359342311,1745945461060,-659.93,0.00027945,2]
[359342312,1745945461069,-914.74,0.00027945,2]
[359342313,1745945461078,-470.0,0.00027945,2]
[359342314,1745945461087,-470.0,0.00027945,2]